Cogmind - Beta 16 --- EXPLORER MODE // 2026.01.07 @ 12:00:11 Player: K.K.Y. Result: Destroyed by GS-5AU(R) with Subdweller Machine Gun Performance ------------- Evolutions (0) 0 Regions Visited (3) 600 Robots Destroyed (27) 135 Value Destroyed (557) 557 Prototype IDs (0) 0 Alien Tech Used (0) 0 Bonus (0) 0 TOTAL SCORE: 1292 Bonus ------- None Cogmind --------- Core Integrity 0/250 Matter 295/300 Energy 63/100 System Corruption 0% Temperature Cool (0) Movement Treading (160) Location -10/Subcaves Parts ------- > --- POWER (1) -------- (None) > --- PROPULSION (2) --- Light Treads > --- UTILITY (3) ------ Medium Storage Unit Structural Scanner Sensor Array > --- WEAPON (2) ------- Medium Laser > --- INVENTORY (10) --- Light Nuclear Core Light Treads Huge Storage Unit Huge Storage Unit Humpback Structural Scanner ECM Suite Light Armor Plating Mining Laser Peak State ------------ > --- POWER ------------ Ion Engine > --- PROPULSION ------- Light Treads Light Treads > --- UTILITY ---------- Medium Storage Unit Structural Scanner Sensor Array > --- WEAPON ----------- Medium Laser Medium Laser > --- INVENTORY -------- Light Nuclear Core Light Treads Huge Storage Unit Structural Scanner Sensor Array ECM Suite Medium Laser Mining Laser [Rating: 9] Favorites ----------- Power Ion Engine Engine Ion Engine Propulsion Light Treads Treads Light Treads Utility Structural Scanner Device Structural Scanner Storage Medium Storage Unit Processor Targeting Computer Weapon Medium Laser Energy Gun Medium Laser Special Weapon Mining Laser Build | -11 -10 -10 -10 ------- Run | Yrd Mat Min Sub Slots Evolved 1 | . 1 . . Power . | . . . . Propulsion . | . . . . Utility 1 | . 1 . . Weapon . | . . . . Parts Attached 14 | 7 5 . 2 Power 1 | 1 . . . Engine 1 | 1 . . . Core . | . . . . Reactor . | . . . . Propulsion 2 | 2 . . . Treads 2 | 2 . . . Leg . | . . . . Wheel . | . . . . Hover . | . . . . Flight . | . . . . Utility 6 | 2 3 . 1 Device 4 | 1 2 . 1 Storage 1 | . 1 . . Processor 1 | 1 . . . Hackware . | . . . . Protection . | . . . . Artifact . | . . . . Weapon 5 | 2 2 . 1 Energy Gun 4 | 2 2 . . Energy Cannon . | . . . . Ballistic Gun . | . . . . Ballistic Cannon . | . . . . Launcher . | . . . . Special Weapon 1 | . . . 1 Impact Weapon . | . . . . Slashing Weapon . | . . . . Piercing Weapon . | . . . . Special Melee Weapon . | . . . . Unidentified Prototypes . | . . . . Parts Lost 4 | . . . 4 Power 1 | . . . 1 Propulsion 1 | . . . 1 Utility . | . . . . Weapon 2 | . . . 2 Highest Loss Streak 3 | . . . 3 To Critical Strikes . | . . . . Average Backups 7 | 1 5 9 9 Power . | . . 1 1 Propulsion . | . . . 1 Utility 4 | 1 2 5 6 Weapon 1 | . 1 2 1 Tool/Special . | . . . . Unused Backups 7 | . . . 7 Power 1 | . . . 1 Propulsion 1 | . . . 1 Utility 5 | . . . 5 Weapon . | . . . . Tool/Special . | . . . . Average Slot Usage (%) 97 | . 94 100 99 Engine 11 | . 12 12 11 Treads 24 | . 25 25 24 Device 22 | . 18 25 25 Storage 9 | . 6 12 12 Processor 2 | . 5 . . Energy Gun 24 | . 25 25 23 Peak Build Rating 9 | 7 8 9 9 Average Rating 8 | 5 7 8 8 On Entrance 6 | . 7 8 9 Avg Prop Armor Cover (%) . | . . . . Naked Turns . | . . . . Heaviest Build 21 | 10 21 21 21 Greatest Support 40 | 40 40 40 40 Greatest Overweight (x) . | . . . . Average Overweight (x) . | . . . . Largest Inventory Capacity 10 | 5 10 10 10 Average Capacity 8 | 5 7 10 10 Most Carried 10 | 5 7 10 10 Average Carried 7 | 1 5 9 9 Final Capacity 10 | 5 10 10 10 Final Carried 10 | 2 7 10 10 Class Distribution -------------------- 100% | Hacker-Mutant Dominant Class ---------------- Hacker-Mutant | -10/Materials Hacker-Mutant | -10/Mines Hacker-Mutant | -10/Subcaves Resources | -11 -10 -10 -10 ----------- Run | Yrd Mat Min Sub Matter Collected 340 | 270 50 . 20 Remotely . | . . . . Salvage Created 901 | 115 467 137 182 Parts 52 | 6 35 7 4 Haulers Intercepted 2 | . 2 . . Recyclers Shooed 3 | . 3 . . Parts Field Recycled . | . . . . Retrieved Matter . | . . . . Parts Self-Destructed . | . . . . Prevented . | . . . . Parts Restored . | . . . . Kills | -11 -10 -10 -10 ------- Run | Yrd Mat Min Sub Combat Hostiles Destroyed 13 | . 6 3 4 Guns 13 | . 6 3 4 Classes Destroyed 9 | 2 6 . 1 Worker 1 | . 1 . . Builder 4 | . 4 . . Tunneler 3 | 3 . . . Hauler 2 | . 2 . . Recycler 1 | 1 . . . Watcher 3 | . 3 . . Swarmer 2 | . 2 . . Grunt 7 | . 4 3 . Subdweller 4 | . . . 4 Best Kill Streak 4 | 4 4 3 2 Combat Bots Only 3 | . 2 3 2 Max Kills in Single Turn 2 | 1 2 1 1 Gunslinging . | . . . . Exploded . | . . . . Melee . | . . . . Uniques/NPCs Destroyed . | . . . . Combat | -11 -10 -10 -10 -------- Run | Yrd Mat Min Sub Hostile Shots Fired 80 | . 20 16 44 Missed 13 | . 5 2 6 Hits 67 | . 15 14 38 Projectile 67 | . 15 14 38 AOE 1 | . . . 1 Critical Strikes 2 | . . 1 1 Damage Taken 878 | . 107 177 594 Core 255 | . . 62 193 Absorbed by Shields . | . . . . Ignored by Resistances 536 | . 71 108 357 Core Remaining (%) 100 | 100 . . . Volleys Fired 77 | 10 33 7 27 Largest 2 | 2 2 2 2 Hottest 150 | 90 100 100 150 Shots Fired 149 | 20 66 14 49 Gun 148 | 20 66 14 48 Cannon . | . . . . Launcher . | . . . . Special 1 | . . . 1 Kinetic . | . . . . Thermal 149 | 20 66 14 49 Explosive . | . . . . Electromagnetic . | . . . . Robot Hit Streak 36 | 10 22 10 36 Robot Miss Streak 2 | 1 2 1 1 Penetration Max . | . . . . Secondary Targets 1 | . 1 . . Max Gunslinging Chain 1 | . 1 . . Shots Hit Robots 116 | 17 46 11 42 Core Hits 45 | 5 25 7 8 Critical Kills . | . . . . Critical Parts Destroyed . | . . . . Critical Strikes 9 | . 4 1 4 Burn 9 | . 4 1 4 Melee Attacks . | . . . . Impact . | . . . . Slashing . | . . . . Piercing . | . . . . Sneak Attacks . | . . . . Combat Hostiles . | . . . . Follow-up Attacks . | . . . . Damage Inflicted 1446 | 201 583 138 524 Guns 1446 | 201 583 138 524 Cannons . | . . . . Explosions . | . . . . Melee . | . . . . Ramming . | . . . . Kinetic . | . . . . Thermal 1446 | 201 583 138 524 Explosive . | . . . . Electromagnetic . | . . . . Impact . | . . . . Slashing . | . . . . Piercing . | . . . . Highest Corruption . | . . . . Average Corruption . | . . . . Corruption Purged . | . . . . Corruption Blocked . | . . . . Overload Shots . | . . . . Overflow Damage . | . . . . Projectiles . | . . . . Explosions . | . . . . Melee . | . . . . Knockbacks . | . . . . Impact . | . . . . Kinetic . | . . . . Secondary . | . . . . Self-Inflicted Damage . | . . . . Shots . | . . . . Rammed . | . . . . Targets Rammed . | . . . . Kicked . | . . . . Crushed . | . . . . Highest Temperature 273 | 150 252 273 162 Average Temperature 71 | 58 61 116 83 Received Heat Transfer 487 | . 84 123 280 Siege Activations . | . . . . Martial Activations . | . . . . Shielding Activations . | . . . . Robots Disrupted . | . . . . Combat Hostiles . | . . . . Robots Corrupted . | . . . . Combat Hostiles . | . . . . Parts Fried . | . . . . Impact Corruptions . | . . . . Robots Melted . | . . . . Combat Hostiles . | . . . . Parts Melted 8 | 1 3 1 3 Heat Transferred 4769 | 545 1893 481 1850 Parts Sabotaged . | . . . . Parts Stolen . | . . . . Parts Stripped . | . . . . Power Chain Reactions . | . . . . Alert | -11 -10 -10 -10 ------- Run | Yrd Mat Min Sub Maximum Alert Level . | . . . . Low Security (%) 100 | 100 100 100 . Level 1 . | . . . . Level 2 . | . . . . Level 3 . | . . . . Level 4 . | . . . . Level 5 . | . . . . High Security . | . . . . Max Security . | . . . . Peak Influence 60 | 10 60 55 . Initial . | . . . . Average 3 | 1 6 1 . Influence Increases 310 | 20 220 70 . Destroy 0b10 Robot/C 180 | . 120 60 . Destroy 0b10 Robot/NC 70 | 20 50 . . Destroy Leader 50 | . 40 10 . Successful Hack 10 | . 10 . . Influence Decreases 310 | 20 220 70 . Time Decay 310 | 20 220 70 . Squads Dispatched . | . . . . Investigation . | . . . . Extermination . | . . . . Reinforcement . | . . . . Assault . | . . . . Garrison . | . . . . Intercept . | . . . . Searches Triggered . | . . . . Construction Impeded . | . . . . Haulers Reinforced . | . . . . Active Scanning Responses . | . . . . Cargo Convoy Interrupts . | . . . . Stealth | -11 -10 -10 -10 --------- Run | Yrd Mat Min Sub Distress Signals . | . . . . Communications Jammed . | . . . . Distress Signals . | . . . . Times Spotted 22 | . 11 4 7 Peak Tracking Total 2 | . 2 2 2 Tactical Retreats 1 | . 1 . . ECM-based Alert Blocks 1 | . 1 . . Traps | -11 -10 -10 -10 ------- Run | Yrd Mat Min Sub Traps Triggered 1 | . . . 1 Indirectly . | . . . . Trap Hack Attempts . | . . . . Triggered . | . . . . Disarmed . | . . . . Reprogrammed . | . . . . Reused . | . . . . Traps Extracted . | . . . . Installed . | . . . . Triggered . | . . . . Machines | -11 -10 -10 -10 ---------- Run | Yrd Mat Min Sub Machines Disabled . | . . . . Max in Single Turn . | . . . . Machines Repaired . | . . . . Machines Dismantled . | . . . . Machines Sabotaged . | . . . . Overloaded Fab Kills . | . . . . Hacking | -11 -10 -10 -10 --------- Run | Yrd Mat Min Sub Machines Accessed 6 | . 6 . . Terminals 6 | . 6 . . Fabricators . | . . . . Repair Stations . | . . . . Recycling Units . | . . . . Scanalyzers . | . . . . Garrison Access . | . . . . Total Hacks 9 | . 9 . . Successful 8 | . 8 . . Failed 1 | . 1 . . Catastrophic . | . . . . Database Lockouts . | . . . . Manual 6 | . 6 . . Terminals 9 | . 9 . . Fabricators . | . . . . Repair Stations . | . . . . Recycling Units . | . . . . Scanalyzers . | . . . . Garrison Access . | . . . . Terminal Hacks 2 | . 2 . . Robot Analysis 1 | . 1 . . Locate Traps 1 | . 1 . . Fabricator Hacks . | . . . . Repair Station Hacks . | . . . . Recycling Unit Hacks . | . . . . Scanalyzer . | . . . . Garrison Access Hacks . | . . . . Unauthorized Hacks 6 | . 6 . . Terminals 6 | . 6 . . Botnet 6 | . 6 . . Fabricators . | . . . . Repair Stations . | . . . . Recycling Units . | . . . . Scanalyzers . | . . . . Garrison Access . | . . . . Data Cores Recovered . | . . . . Used . | . . . . Hacking Detections . | . . . . Full Trace Events . | . . . . Feedback Events . | . . . . Feedback Blocked . | . . . . Robot Schematics Acquired . | . . . . Robots Built . | . . . . Authchips . | . . . . Time . | . . . . Total Robot Build Rating . | . . . . Part Schematics Acquired . | . . . . Parts Built . | . . . . Authchips . | . . . . Time . | . . . . Total Part Build Rating . | . . . . Part Studies Acquired . | . . . . Parts Repaired . | . . . . Time . | . . . . Parts Recycled . | . . . . Recycled Matter . | . . . . Retrieved Matter . | . . . . Retrieved Components . | . . . . Parts Scanalyzed . | . . . . Part Schematics Acquired . | . . . . Parts Damaged . | . . . . Bothacking | -11 -10 -10 -10 ------------ Run | Yrd Mat Min Sub Used RIF Installer . | . . . . Robots Hacked . | . . . . Non-combat . | . . . . Combat . | . . . . Robot Hacks Applied . | . . . . Relay Couplers Released . | . . . . Fabnet Peak Effective % . | . . . . Robots Rewired . | . . . . Allies Hacked . | . . . . Hacks Repelled . | . . . . Allies | -11 -10 -10 -10 -------- Run | Yrd Mat Min Sub Total Allies . | . . . . Largest Group . | . . . . Highest-Rated Group . | . . . . Highest-Rated Ally . | . . . . Total Orders . | . . . . Ally Attacks . | . . . . Total Damage . | . . . . Kills . | . . . . Allies Corrupted . | . . . . Allies Melted . | . . . . Intel | -11 -10 -10 -10 ------- Run | Yrd Mat Min Sub Active Infowar (turns) 2791 | 126 1140 1068 457 Sensors 2105 | . 580 1068 457 Structural 2141 | . 616 1068 457 ECM 684 | 126 558 . . Robot Analysis Total 1 | . 1 . . Derelict Logs Recovered 1 | . . . 1 Drone Launches . | . . . . Drone Recoveries . | . . . . Exploration | -11 -10 -10 -10 ------------- Run | Yrd Mat Min Sub Turns Passed 2814 | 149 1140 1068 457 Spaces Moved 1514 | 75 620 599 220 Core 16 | 16 . . . Treads 1498 | 59 620 599 220 Legs . | . . . . Wheels . | . . . . Hover . | . . . . Flight . | . . . . Fastest Speed 50 | 50 160 160 160 Average Speed 158 | 136 160 160 160 Slowest Speed 160 | 160 160 160 160 Overloaded Moves . | . . . . Propulsion Burnouts . | . . . . Robots Hopped . | . . . . Potential Cave-ins . | . . . . Cave-ins Triggered . | . . . . Exploration Rate (%) 53 | 4 90 99 22 Regions Visited 3 Branch Regions 2 Pre-discovered Areas . | . . . . Known Exits Taken 3 | 1 1 1 . Unknown Exits Taken . | . . . . Scrap Searched . | . . . . Spaces Dug . | . . . . Terrain Destroyed . | . . . . Melee . | . . . . Projectile . | . . . . AOE . | . . . . Terrain Rammed . | . . . . Walls Destroyed . | . . . . Machines Disabled . | . . . . Actions | -11 -10 -10 -10 --------- Run | Yrd Mat Min Sub Total 1771 | 100 703 695 273 Wait 147 | 3 37 87 20 Move 1511 | 74 619 598 220 Hop . | . . . . Pick Up 16 | 6 6 3 1 Fast Attach 4 | 3 1 . . Attach 6 | 4 1 . 1 Detach 1 | . 1 . . Swap 6 | . 3 . 3 Drop 3 | . 2 . 1 Fire 77 | 10 33 7 27 Melee . | . . . . Ram . | . . . . Kick . | . . . . Crush . | . . . . Escape Stasis . | . . . . Rewire . | . . . . Trap . | . . . . Miscellaneous . | . . . . Route ------- -11/Scrapyard -10/Materials (discovered 4 exits: *Mat x3 / *Min) -10/Mines (discovered 3 exits: *Mat x2 / *Sub) -10/Subcaves History --------- Turn | Location | Event 6 | -11/Scrapyard | Identified exit to Materials 6 | -11/Scrapyard | Discovered exit to Materials (range 15) 150 | -11/Scrapyard | Entered Materials 150 | -10/Materials | Evolved 1 slot: Utility x1 268 | -10/Materials | Identified exit to Materials 268 | -10/Materials | Discovered exit to Materials (range 10) 303 | -10/Materials | Build established: Hacker-Mutant 316 | -10/Materials | Identified exit to Mines 316 | -10/Materials | Discovered exit to Mines (range 16) 466 | -10/Materials | Discovered exit to Materials (range 7) 820 | -10/Materials | Discovered exit to Materials (range 6) 1290 | -10/Materials | Entered Mines 1445 | -10/Mines | Discovered exit to Materials (range 5) 1625 | -10/Mines | Identified exit to Subcaves 1625 | -10/Mines | Discovered exit to Subcaves (range 10) 1633 | -10/Mines | Discovered exit to Materials (range 3) 1907 | -10/Mines | Received a Rocket Launcher from a helpful Derelict 2358 | -10/Mines | Entered Subcaves 2359 | -10/Subcaves | Approached by a straggling Scientist 2525 | -10/Subcaves | Ambushed by Subdwellers from Twisted Machinery 2588 | -10/Subcaves | Shifting Twisted Machinery released Sub. Machine Gun 2604 | -10/Subcaves | Core integrity fell below 50% 2802 | -10/Subcaves | Core integrity fell below 20% 2815 | -10/Subcaves | Destroyed by GS-5AU(R) with Subdweller Machine Gun Last Messages --------------- 02693_ Destroyed Scrap Shield. 02696_ XB-2M8(R) destroyed. IX-1BD(c): "I think it's somewhere southeast of here" 02731_ Sub. Power Source melted. 02731_ YU-F26(R) destroyed. 02742_ ED-IHB(R) destroyed. 02748_ Subatomizers dissect the Sub. Shrapnel Launcher. IX-1BD(c): "I think it's somewhere southeast of here" 02803_ Ion Engine destroyed. 02804_ 30-SAM(R) suffers critical hit (Burn). 02805_ 30-SAM(R) overheating. 02807_ Lgt. Treads destroyed. 02807_ 30-SAM(R) suffers critical hit (Burn). 02808_ 30-SAM(R) heat damages Scrap Shield. 02808_ 30-SAM(R) overheating. 02810_ 30-SAM(R) heat damages Sub. Power Source. 02811_ Med. Laser destroyed. Map ----- +----------------------------------------------------+ | | | | | | | | | | | ?????????????????????????????????????????????????? | | ?????????????????????????????????????????????????? | | ?????????????????????????????????????????????????? | | ?????????????????????????????????????????????????? | | ?????????????????????????????????????????????????? | | ?????????????????????????????????????????????????? | | ?????????????????????????????????????????????????? | | ?????????????????????????????????????????????????? | | ?????????????????????????????????????????????????? | | ?????????????????????????????????????????????????? | | ?????????????????????????????????????????????????? | | ?????????????????????????????????????????????????? | | ?????????????????????????????????????????????????? | | ?????#####?########??????????????????????????????? | | ?????###############?????????????????????????????? | | ???#### ##### ############?????????###????????? | | ??##### "" ############## ??? ##????????? | | ??###"" " """ ## # # ##### # ????????? | | ??##""&[! """" # R "" ????????? | | ??##" &%&"#### % R ""?????????? | | ??##" ]=& ###### ;@#### # ?????????? | | ?###" !""####### ####;######### ####?????????? | | ####" &"##??##############??##########?????????? | | ### %###???######????????????#####???????????? | | ## ""##?????????????????????????????????????? | | ###??????????????????????????????????????? | | ###??????????????????????????????????????? | | ##??????????????????????????????????????? | | ####??????????????????????????????????????? | | ## ######??????????????????????????????????????? | | #########????????????????????????????????????????? | | #######??????????????????????????????????????????? | | ########?????????????????????????????????????????? | | #######?????????????????????????????????????????? | | ## ##?????????????????????????????????????????? | | ##?????????????????????????????????????????? | | ###?????????????????????????????????????????? | | ######?????????????????????????????????????????? | | #####??????????????????????????????????????????? | | ###????????????????????????????????????????????? | | ####???????????????????????????????????????????? | | ###???????????????????????????????????????????? | | ##???????????????????????????????????????????? | | ## ####?????????????????????????????????????????? | | ## ####?????????????????????????????????????????? | +----------------------------------------------------+ Best States ------------- Heat Dissipation 25 Energy Generation 10 Energy Capacity 250 Matter Stores 300 Matter Capacity 300 Sight Range 16 Robot Scan Range 14 Terrain Scan Density 10 ECM Strength 1 Resistance: KI 35 Resistance: TH 35 Resistance: EX 35 Resistance: EM 35 Resistance: I 35 Resistance: S 35 Resistance: P 35 Evasion (%) 50 Targeting Accuracy 5 Recoil Reduction 2 Offensive Hacking 20 Item Schematics ----------------- None Robot Schematics ------------------ None Fabricated ------------ Nothing Repaired ---------- Nothing Studied --------- None Alien Tech Used ----------------- None Achievements -------------- None Challenges ------------ None Game ------ Seed PersonalTransmissionLauncher Manual? 0 Play Time 00:14:34 Cumulative 256.9 hours Start 2026.01.07 @ 11:06:15 End 2026.01.07 @ 12:00:11 Sessions 1 Manual Loads 0 Difficulty Explorer Special Mode None Game No. 407 Rogue 0 Adventurer 0 Explorer 407 Win Type - Total 0 Types 0/0/0/0/0/0/0/0/0/0 Lore% 72 Gallery% 69 Achievement% 54 Wizard Run 0 Options --------- Layout 1 ASCII 0 Keyboard 0 Movement Mouse Keybinds 0 Fullscreen 1 Font 24/Smallcaps Map View 50x35 Zoom Use 0% Tactical HUD 1 Map Filters NONE Filters NONE Steam 1 RUN: ca53f736-dbe0-47cc-b615-47cfc4b0417b